bitfinex-derivatives/quotes_SOLF0:USTF0_20241230
["timestamp","ask_amount","ask_price","bid_price","bid_amount"]
[1735597939745,0.81321488,191.28,191.21,1.4616]
[1735597940449,2.6184,191.29,191.24,2.619]
[1735597941649,2.6184,191.29,191.23,2.6192]
[1735597941850,2.6185,191.28,191.23,2.6192]
[1735597942151,13.12841559,191.32,191.21,1.4616]
[1735597942445,2.6188,191.26,191.21,1.4616]
[1735597943547,2.6188,191.26,191.21,4.081]
[1735597943949,2.6192,191.23,191.21,1.4616]
[1735597944148,13.12841559,191.29,191.21,1.4616]
[1735597944350,0.81328483,191.28,191.21,1.4616]
[1735597945552,0.81328483,191.28,191.2,1.5819]
[1735597945946,0.81328483,191.28,191.16,1.5097]
[1735597946347,2.6194,191.22,191.17,2.6199]
[1735597946547,2.6194,191.22,191.16,1.5097]
[1735597947454,2.6194,191.22,191.18,2.6198]
[1735597947649,2.6194,191.22,191.16,1.5097]
[1735597948651,2.6194,191.22,191.17,2.62]
[1735597949457,3.72,191.24,191.16,1.5097]
[1735597949650,0.81340965,191.23,191.16,1.5097]
[1735597950052,3.72,191.24,191.16,1.5097]
[1735597950256,2.6199,191.18,191.16,1.5097]
[1735597950846,2.6197,191.2,191.16,1.5097]
[1735597951052,3.72,191.24,191.16,1.5097]
[1735597951355,0.81351381,191.23,191.14,1.4717]
[1735597951549,2.6199,191.18,191.14,4.0921]
[1735597952053,2.6197,191.19,191.15,2.6203]
[1735597952254,2.6197,191.19,191.14,1.4717]
[1735597952456,3.72,191.24,191.14,1.4717]
[1735597952754,2.6199,191.19,191.14,4.0921]
[1735597953550,13.12841559,191.23,191.14,1.4717]
[1735597953755,0.81353596,191.22,191.14,1.4717]
[1735597953956,0.81353596,191.22,191.09,14.61701559]
[1735597954154,0.81353596,191.22,191.09,16.11971559]
[1735597954556,13.12841559,191.17,191.09,2.9913]
[1735597954757,3.72,191.16,191.09,2.9913]
[1735597954959,2.6207,191.12,191.09,2.9913]
[1735597955159,3.72,191.16,191.04,52.02337043]
[1735597955356,0.81390239,191.15,191.04,52.02337043]
[1735597955557,13.12841559,191.14,191.04,54.64517043]
[1735597955860,0.81390239,191.13,191.04,52.02337043]
[1735597957364,0.81398785,191.12,191.04,52.02337043]
[1735597957562,2.6211,191.1,191.05,2.6216]
[1735597957767,6.3411,191.1,191.05,2.6216]
[1735597958260,3.72,191.1,191.08,2.6211]
[1735597958961,7.26093106,191.16,191.08,2.6211]
[1735597959161,10.98093106,191.16,191.07,13.12841559]
[1735597959559,7.26093106,191.17,191.14,2.6203]
[1735597960166,7.26093106,191.17,191.15,2.6203]
[1735597960466,28.8910191,191.23,191.13,13.12841559]
[1735597960666,0.81346435,191.22,191.13,13.12841559]
[1735597960869,31.5102191,191.23,191.13,13.12841559]
[1735597961065,28.8910191,191.23,191.13,13.12841559]
[1735597961567,61.46748649,191.24,191.17,2.62]
[1735597961568,2.6194,191.22,191.17,2.62]
[1735597962268,2.6194,191.22,191.13,13.12841559]
[1735597962269,2.6194,191.22,191.16,2.6201]
[1735597964470,3.72,191.24,191.16,2.6201]
[1735597964776,2.6195,191.21,191.16,2.6201]
[1735597964967,3.72,191.24,191.13,13.12841559]
[1735597965169,0.81342615,191.23,191.13,13.12841559]
[1735597965665,3.72,191.24,191.13,13.12841559]
[1735597966369,2.6195,191.21,191.16,2.62]
[1735597968076,3.72,191.24,191.1,16.84841559]
[1735597968278,0.81343033,191.23,191.1,16.84841559]
[1735597968471,2.62,191.18,191.12,2.6206]
[1735597968672,3.72,191.24,191.1,16.84841559]
[1735597968978,0.81343021,191.23,191.1,16.84841559]
[1735597969377,2.6199,191.18,191.13,2.6205]
[1735597969675,3.72,191.24,191.1,13.12841559]
[1735597969867,13.94184675,191.23,191.1,13.12841559]
[1735597970070,13.12841559,191.23,191.1,13.12841559]
[1735597970472,13.12841559,191.23,191.12,2.6206]
[1735597970678,3.72,191.24,191.12,2.6206]
[1735597970879,2.6197,191.2,191.13,2.6205]
[1735597971078,3.72,191.24,191.1,13.12841559]
[1735597971281,0.81349038,191.23,191.1,13.12841559]
[1735597972574,2.62,191.18,191.13,2.6205]
[1735597972779,3.72,191.24,191.1,13.12841559]
[1735597973079,0.81355841,191.23,191.12,2.6206]
[1735597974378,0.81355841,191.23,191.1,13.12841559]
[1735597975169,2.6197,191.19,191.14,2.6203]
[1735597978382,2.6196,191.2,191.15,2.6202]
[1735597979279,2.6197,191.19,191.15,2.6202]
[1735597980375,2.6197,191.19,191.1,13.12841559]
[1735597980673,2.6197,191.19,191.14,2.6204]
[1735597981581,2.6197,191.19,191.1,13.12841559]
[1735597982080,2.6197,191.19,191.14,2.6203]
[1735597982678,8.42430673,191.21,191.13,8.42430673]
[1735597982876,8.42430673,191.19,191.12,2.6206]
[1735597983079,3.72,191.18,191.12,2.6206]
[1735597983280,3.72,191.18,191.11,8.42430673]
[1735597983482,3.72,191.18,191.09,1.5173]
[1735597983483,8.42430673,191.17,191.1,2.6209]
[1735597983683,8.42430673,191.17,191.09,9.94160673]
[1735597983881,2.6205,191.14,191.09,12.56260673]
[1735597984081,8.42430673,191.17,191.09,9.94160673]
[1735597984277,8.42430673,191.17,191.09,1.5173]
[1735597985486,2.6206,191.13,191.09,1.5173]
[1735597985880,8.42430673,191.17,191.09,9.94160673]
[1735597986081,8.42430673,191.17,191.09,1.5173]
[1735597986388,3.72,191.18,191.09,1.5173]
[1735597986586,2.6205,191.14,191.09,4.1384]
[1735597986983,3.72,191.18,191.09,4.1384]
[1735597987286,0.81373654,191.17,191.09,4.1384]
[1735597988287,0.81374973,191.16,191.09,4.1384]
[1735597988585,2.6207,191.13,191.09,4.1384]
[1735597989089,3.72,191.18,191.09,4.1384]
[1735597989090,2.6207,191.12,191.09,4.1384]
[1735597989593,2.6206,191.13,191.09,4.1384]
[1735597989781,2.6206,191.13,191.1,2.621]
[1735597990580,3.72,191.18,191.09,1.5173]
[1735597990888,0.81380114,191.17,191.11,2.6208]
[1735597991688,2.6204,191.15,191.11,2.6208]
[1735597992484,2.6204,191.14,191.11,2.6208]
[1735597994490,7.26093106,191.18,191.13,2.6205]
[1735597994679,7.26093106,191.18,191.09,1.5173]
[1735597995791,2.6199,191.18,191.13,2.6205]
[1735597996091,10.96093106,191.21,191.09,1.5173]
[1735597996281,0.81363529,191.2,191.09,1.5173]
[1735597996690,4.51363529,191.2,191.09,1.5173]
[1735597996888,3.7,191.2,191.09,1.5173]
[1735597997391,2.6198,191.19,191.14,2.6204]
[1735597998690,10.96093106,191.21,191.09,1.5173]
[1735597998892,0.81363641,191.2,191.09,1.5173]
[1735597999393,2.6199,191.18,191.13,2.6204]
[1735597999590,10.96093106,191.21,191.09,1.5173]
[1735597999789,0.8136221,191.2,191.09,1.5173]
[1735597999990,2.6198,191.19,191.13,2.6204]
[1735598000788,2.6198,191.19,191.14,2.6204]
[1735598004088,2.62,191.18,191.12,2.6206]
[1735598004790,2.62,191.18,191.13,2.6206]
[1735598011197,2.62,191.17,191.13,2.6206]
[1735598017198,2.6199,191.18,191.14,2.6204]
[1735598018101,2.6199,191.18,191.13,2.6205]
[1735598021498,2.6199,191.18,191.12,8.42508373]
[1735598021499,7.26093106,191.19,191.12,8.42508373]
[1735598021906,15.68601479,191.2,191.12,8.42508373]
[1735598022105,0.81361314,191.19,191.12,8.42508373]
[1735598022405,2.6201,191.17,191.13,2.6205]
[1735598027810,28.8910191,191.19,191.16,8.42508373]
[1735598028010,28.8910191,191.19,191.18,8.42508373]
[1735598028205,5.1330191,191.19,191.18,11.04498373]
[1735598028802,5.1330191,191.23,191.21,2.6194]
[1735598029013,5.1330191,191.23,191.21,11.04448373]
[1735598029612,2.6188,191.26,191.21,11.04448373]
[1735598032304,2.6192,191.23,191.17,4.1428]
[1735598032508,3.7,191.26,191.17,1.5229]
[1735598032711,8.42508373,191.25,191.17,9.94798373]
[1735598032911,2.6193,191.23,191.18,2.6199]
[1735598033111,8.42508373,191.25,191.18,2.6199]
[1735598034411,2.6192,191.23,191.18,2.6199]
[1735598038814,3.7,191.26,191.19,8.42508373]
[1735598039020,17.49861162,191.3,191.21,8.42508373]
[1735598039221,0.81319648,191.29,191.23,8.42508373]
[1735598039516,86.6221304,191.32,191.25,8.42508373]
[1735598039720,71.70390429,191.31,191.25,8.42508373]
[1735598040018,71.70390429,191.31,191.27,2.6186]
[1735598040814,2.618,191.32,191.27,2.6186]
[1735598042610,2.618,191.32,191.27,11.04368373]
[1735598044419,8.42508373,191.34,191.27,8.42508373]
[1735598044617,2.6177,191.35,191.3,2.6182]
[1735598044918,0.81290815,191.34,191.27,8.42508373]
[1735598045108,12.12508373,191.36,191.27,8.42508373]
[1735598045109,2.6178,191.33,191.28,2.6184]
[1735598045314,2.6178,191.33,191.29,8.42508373]
[1735598046017,2.6178,191.33,191.29,11.04348373]
[1735598046214,2.6181,191.31,191.25,9.91288373]
[1735598046414,8.42508373,191.35,191.27,2.6186]
[1735598046614,0.81290005,191.34,191.27,11.04368373]
[1735598047508,2.6179,191.33,191.27,11.04368373]
[1735598047708,2.6179,191.33,191.28,2.6185]
[1735598050013,2.6179,191.33,191.25,1.4878]
[1735598050014,3.7,191.37,191.29,8.42508373]
[1735598050317,0.81288182,191.36,191.35,8.42508373]
[1735598051621,71.47387022,191.46,191.35,8.42508373]
[1735598051811,71.47387022,191.46,191.37,8.42508373]
[1735598052013,2.6169,191.41,191.35,11.04258373]
[1735598052616,2.6165,191.43,191.37,11.04238373]
[1735598052812,8.42508373,191.45,191.37,8.42508373]
[1735598053012,0.80616317,191.44,191.37,8.42508373]
[1735598053218,2.6167,191.42,191.36,2.6174]
[1735598053517,8.42508373,191.41,191.33,9.92218373]
[1735598053918,2.617,191.4,191.33,12.53988373]
[1735598054113,2.617,191.4,191.33,9.92218373]
[1735598054517,2.6171,191.39,191.34,2.6177]
[1735598054919,8.42508373,191.41,191.33,9.92218373]
[1735598055514,2.6172,191.38,191.33,12.53998373]
[1735598056323,2.6169,191.4,191.34,2.6176]
[1735598056519,8.42508373,191.43,191.33,1.4971]
[1735598056819,2.6173,191.37,191.33,8.42508373]
[1735598057620,1.6013,191.46,191.35,8.42508373]
[1735598057817,12.91136018,191.45,191.37,8.42508373]
[1735598058013,0.80627645,191.44,191.37,8.42508373]
[1735598058420,2.6168,191.41,191.37,8.42508373]
[1735598058919,2.6168,191.41,191.36,2.6174]
[1735598058920,12.10508373,191.45,191.35,8.42508373]
[1735598059118,12.10508373,191.45,191.29,3.68]
[1735598059119,0.80619554,191.44,191.29,3.68]
[1735598059321,9.23127927,191.44,191.36,8.42508373]
[1735598059522,3.68,191.45,191.38,8.42508373]
[1735598059723,2.6165,191.43,191.38,11.04218373]
[1735598061625,3.68,191.45,191.37,2.6171]
[1735598061626,2.6167,191.42,191.37,2.6171]
[1735598066229,8.42508373,191.44,191.37,2.6171]
[1735598066529,8.42508373,191.42,191.33,8.42508373]
[1735598066722,3.68,191.41,191.31,8.42508373]
[1735598066922,2.6173,191.37,191.32,2.6179]
[1735598069131,8.42508373,191.38,191.31,8.42508373]
[1735598070526,8.42508373,191.38,191.27,1.4779]
[1735598070723,8.42508373,191.36,191.29,8.42508373]
[1735598070929,3.68,191.35,191.29,8.42508373]
[1735598071230,2.6178,191.33,191.28,11.04358373]
[1735598071431,2.6178,191.33,191.28,8.42508373]
[1735598071828,2.618,191.32,191.28,11.04358373]
[1735598072429,2.6179,191.33,191.28,11.04358373]
[1735598072928,3.68,191.35,191.28,8.42508373]
[1735598073127,2.618,191.32,191.28,8.42508373]
[1735598073826,2.6181,191.31,191.28,8.42508373]
[1735598074230,8.42508373,191.34,191.26,8.42508373]
[1735598074430,2.6183,191.3,191.26,8.42508373]
[1735598074829,8.42508373,191.32,191.25,8.42508373]
[1735598075934,2.6185,191.29,191.25,8.42508373]
[1735598079641,2.6184,191.29,191.25,8.42508373]
[1735598082436,2.6182,191.3,191.27,8.42508373]
[1735598086841,3.68,191.34,191.29,8.42508373]
[1735598087036,0.80669171,191.33,191.29,8.42508373]
[1735598087439,2.6181,191.31,191.29,8.42508373]
[1735598088646,2.6181,191.31,191.27,11.04368373]
[1735598088949,28.91273605,191.39,191.29,8.42508373]
[1735598089244,28.91273605,191.39,191.35,8.42508373]
[1735598089435,28.91273605,191.39,191.38,2.6171]
[1735598089638,44.52131978,191.43,191.38,2.6171]
[1735598089835,0.80626173,191.42,191.35,8.42508373]
[1735598090034,3.42296173,191.42,191.37,2.6172]
[1735598090243,2.6167,191.42,191.37,2.6172]
[1735598090446,41.90471978,191.43,191.35,8.42508373]
[1735598090639,0.80622956,191.42,191.35,8.42508373]
[1735598091447,2.6171,191.38,191.35,8.42508373]
[1735598091648,8.42508373,191.41,191.33,8.42508373]
[1735598091840,4.5669,191.43,191.28,4.5219]
[1735598091841,8.42508373,191.39,191.31,8.42508373]
[1735598092046,8.42508373,191.37,191.28,4.5219]
[1735598092345,3.68,191.36,191.3,8.42508373]
[1735598092545,2.6178,191.34,191.3,8.42508373]
[1735598092848,3.68,191.36,191.28,8.42508373]
[1735598093047,0.80659314,191.35,191.28,8.42508373]
[1735598093249,2.6178,191.33,191.28,8.42508373]
[1735598093441,3.68,191.36,191.28,8.42508373]
[1735598093641,0.80661866,191.35,191.28,8.42508373]
[1735598094440,2.6181,191.32,191.28,8.42508373]
[1735598094647,3.68,191.36,191.27,2.6185]
[1735598094848,9.23170227,191.35,191.27,2.6185]
[1735598095140,2.618,191.32,191.27,11.04358373]
[1735598096451,2.618,191.32,191.27,11.04368373]
[1735598097249,6.2978,191.34,191.29,11.04348373]
[1735598099451,7.25234186,191.39,191.29,8.42508373]
[1735598099653,2.6175,191.36,191.32,2.618]
[1735598099951,7.25234186,191.39,191.33,8.42508373]
[1735598100151,0.80643872,191.38,191.33,8.42508373]
[1735598100954,7.25234186,191.39,191.33,8.42508373]
[1735598101752,7.25234186,191.39,191.35,8.42508373]
[1735598101952,3.68,191.41,191.35,8.42508373]
[1735598102155,6.2969,191.41,191.37,2.6172]
[1735598102350,3.68,191.42,191.35,8.42508373]
[1735598102654,2.6175,191.36,191.31,11.04318373]
[1735598102951,8.42508373,191.39,191.31,8.42508373]
[1735598103145,0.80638918,191.38,191.31,8.42508373]
[1735598103544,2.6177,191.34,191.23,3.68]
[1735598103751,2.6177,191.34,191.3,8.42508373]
[1735598103952,8.42508373,191.37,191.3,8.42508373]
[1735598104153,2.618,191.32,191.28,11.04358373]
[1735598104348,2.618,191.32,191.28,8.42508373]
[1735598109051,2.618,191.32,191.27,2.6185]
[1735598109459,2.618,191.32,191.28,8.42508373]
[1735598109665,2.618,191.32,191.28,11.04358373]
[1735598111567,2.6179,191.33,191.28,11.04358373]
[1735598113673,21.17906491,191.36,191.28,8.42508373]
[1735598113876,2.618,191.32,191.28,8.42508373]
[1735598114571,2.6178,191.33,191.28,8.42508373]
[1735598114773,3.68,191.36,191.28,8.42508373]
[1735598114976,0.80658812,191.35,191.28,8.42508373]
[1735598115166,2.6178,191.33,191.28,8.42508373]
[1735598115370,24.23056491,191.36,191.28,8.42508373]
[1735598115571,0.80662469,191.35,191.28,8.42508373]
[1735598115968,2.6181,191.31,191.28,8.42508373]
[1735598116272,15.15658373,191.36,191.27,2.6186]
[1735598116478,2.6183,191.3,191.27,2.6186]
[1735598116672,2.6183,191.3,191.26,8.42508373]
[1735598116971,2.6186,191.28,191.24,8.42508373]
[1735598117475,2.6184,191.29,191.24,11.04398373]
[1735598118375,3.68,191.3,191.24,8.42508373]
[1735598118979,2.6188,191.27,191.24,8.42508373]
[1735598119873,2.6188,191.27,191.22,11.04428373]
[1735598120877,2.6188,191.26,191.22,2.6192]
[1735598121081,2.6188,191.26,191.22,11.04428373]
[1735598121377,2.6188,191.26,191.22,8.42508373]
[1735598122580,8.42508373,191.28,191.2,11.04458373]
[1735598122781,8.42508373,191.28,191.2,8.42508373]
[1735598123483,8.42508373,191.26,191.19,54.61091126]
[1735598124079,2.6195,191.21,191.15,8.42508373]
[1735598124484,3.68,191.22,191.17,2.62]
[1735598124681,6.2994,191.22,191.17,2.62]
[1735598124877,9.07355036,191.27,191.19,8.42508373]
[1735598125081,6.2988,191.26,191.21,11.04448373]
[1735598125677,3.68,191.27,191.21,8.42508373]
[1735598126179,3.68,191.28,191.21,8.42508373]
[1735598126383,3.68,191.28,191.24,2.619]
[1735598126785,3.68,191.28,191.21,8.42508373]
[1735598126985,2.6187,191.27,191.17,1.4629]
[1735598127181,2.6187,191.27,191.2,8.42508373]
[1735598127678,8.42508373,191.26,191.21,2.6195]
[1735598129486,8.42508373,191.26,191.22,2.6192]
[1735598129677,8.42508373,191.26,191.18,8.42508373]
[1735598130080,8.42508373,191.26,191.2,2.6196]
[1735598130383,8.42508373,191.26,191.18,8.42508373]
[1735598130583,11.04388373,191.26,191.21,2.6194]
[1735598130776,8.42508373,191.26,191.21,2.6194]
[1735598131580,3.68,191.25,191.21,2.6194]
[1735598132687,6.2989,191.25,191.21,2.6194]
[1735598134485,3.68,191.25,191.24,2.6191]
[1735598135582,3.68,191.25,191.18,8.42508373]
[1735598136482,11.04358373,191.28,191.23,2.6192]
[1735598136687,3.68,191.28,191.2,8.42508373]
[1735598137485,3.68,191.28,191.24,2.6189]
[1735598138485,6.2984,191.29,191.24,2.6189]
[1735598138689,2.6186,191.28,191.24,2.6189]
[1735598139582,14.72338373,191.3,191.25,2.6189]
[1735598139787,0.80686314,191.29,191.25,2.6189]
[1735598140289,0.80686314,191.29,191.24,2.619]
[1735598140884,2.6187,191.27,191.24,2.619]
[1735598141584,2.6185,191.29,191.25,2.6189]
[1735598142990,2.6186,191.28,191.24,2.619]
[1735598143591,12.10508373,191.3,191.2,8.42508373]
[1735598143782,8.42508373,191.26,191.17,1.4629]
[1735598144485,2.619,191.25,191.2,2.6196]
[1735598144688,2.619,191.25,191.18,8.42508373]
[1735598145192,2.619,191.25,191.2,2.6195]
[1735598145587,2.6191,191.24,191.18,8.42508373]
[1735598145784,2.6191,191.24,191.19,2.6197]
[1735598145986,2.6191,191.24,191.18,8.42508373]
[1735598147400,2.6191,191.24,191.2,2.6196]
[1735598149402,12.08508373,191.27,191.18,8.42508373]
[1735598149602,2.619,191.25,191.18,8.42508373]
[1735598151400,2.619,191.25,191.2,2.6196]
[1735598155499,2.619,191.25,191.18,8.42508373]
[1735598155699,2.619,191.25,191.21,2.6195]
[1735598157703,7.27014636,191.27,191.18,8.42508373]
[1735598157904,13.54884636,191.27,191.23,2.6192]
[1735598159012,2.6188,191.26,191.23,2.6192]
[1735598161314,41.16566917,191.28,191.24,2.619]
[1735598161515,29.08058544,191.28,191.23,8.42508373]
[1735598162113,29.08058544,191.28,191.27,2.6186]
[1735598162313,7.27014636,191.28,191.27,2.6186]
[1735598163110,29.08058544,191.31,191.27,2.6186]
[1735598163313,0.80684511,191.3,191.27,2.6186]
[1735598163510,9.0980049,191.3,191.27,2.6186]
[1735598164014,29.08058544,191.31,191.27,2.6186]
[1735598164215,8.07699137,191.3,191.27,2.6186]
[1735598164417,7.27014636,191.3,191.27,2.6186]
[1735598165115,41.61171387,191.31,191.27,2.6186]
[1735598165311,44.22981387,191.31,191.27,2.6186]
[1735598165512,0.80684025,191.3,191.26,2.6188]
[1735598165712,2.6184,191.29,191.25,8.42508373]
[1735598167517,19.6250694,191.3,191.23,8.42508373]
[1735598167715,19.6250694,191.3,191.21,8.42508373]
[1735598168412,0.80685721,191.29,191.21,8.42508373]
[1735598168719,9.90407127,191.29,191.21,8.42508373]
[1735598169012,13.02705337,191.29,191.21,8.42508373]
[1735598169418,2.6188,191.26,191.22,2.6192]
[1735598170113,2.619,191.25,191.21,8.42508373]
[1735598170617,21.18532508,191.28,191.21,8.42508373]
[1735598171019,2.619,191.25,191.21,8.42508373]
[1735598173817,2.619,191.25,191.2,11.04468373]
[1735598174616,2.6192,191.23,191.19,54.61177281]
[1735598174817,2.6192,191.23,191.19,63.03685654]
[1735598175019,8.42508373,191.26,191.19,51.99207281]
[1735598175818,2.6195,191.21,191.19,51.99207281]
[1735598176020,8.42508373,191.24,191.14,1.4823]
[1735598176316,8.42508373,191.24,191.15,10.73393698]
[1735598177019,2.6196,191.21,191.16,2.6201]
[1735598177417,8.42508373,191.2,191.1,1.4672]
[1735598177618,8.42508373,191.2,191.12,8.42508373]
[1735598178225,2.6202,191.16,191.12,8.42508373]
[1735598178923,2.6204,191.15,191.12,8.42508373]
[1735598179124,2.6204,191.15,191.1,11.04608373]
[1735598179324,3.66,191.15,191.09,2.621]
[1735598179517,2.62,191.17,191.03,3.1927]
[1735598179720,3.66,191.18,191.12,8.42508373]
[1735598180125,2.6202,191.16,191.1,2.6209]
[1735598180425,2.6202,191.16,191.11,8.42508373]
[1735598180622,2.6202,191.16,191.11,11.04588373]
[1735598183827,8.42508373,191.17,191.09,8.42508373]
[1735598184129,2.6208,191.11,191.07,2.6213]
[1735598185024,3.66,191.12,191.06,8.42508373]
[1735598185225,3.66,191.12,191.04,8.42508373]
[1735598186129,2.621,191.1,191.05,2.6216]
[1735598186324,3.66,191.12,191.04,8.42508373]
[1735598186524,0.80776752,191.11,191.04,8.42508373]
[1735598186923,9.23285125,191.11,191.04,8.42508373]
[1735598187119,8.42508373,191.11,190.85,32.02381281]
[1735598187323,2.6212,191.09,191.03,8.42508373]
[1735598188429,2.6212,191.09,191.04,2.6218]
[1735598190928,2.6213,191.08,191.04,2.6218]
[1735598191527,2.6213,191.08,191.03,11.04698373]
[1735598194135,2.6215,191.07,191.03,8.42508373]
[1735598194632,2.6212,191.09,191.04,2.6218]
[1735598196037,3.66,191.11,191.07,2.6213]
[1735598196230,0.80784264,191.1,191.07,11.04638373]
[1735598197036,3.66,191.11,191.07,11.04638373]
[1735598197743,3.66,191.11,191.09,2.6211]
[1735598197939,3.66,191.11,191.07,8.42508373]
[1735598198344,3.66,191.11,190.94,8.0858]
[1735598198543,3.66,191.11,191.04,8.42508373]
[1735598198841,3.66,191.11,191.06,8.42508373]
[1735598199640,6.281,191.11,191.06,11.04658373]
[1735598199840,6.281,191.11,191.06,8.42508373]
[1735598200240,6.281,191.11,191.05,8.42508373]
[1735598200838,6.281,191.11,191.06,2.6214]
[1735598212657,8.42508373,191.13,190.99,4.6168]
[1735598212658,3.66,191.12,191.07,8.42508373]
[1735598213051,3.66,191.12,191.05,8.42508373]
[1735598213356,8.42508373,191.11,191.05,8.42508373]
[1735598213955,2.6211,191.1,191.05,11.04668373]
[1735598214857,6.2811,191.1,191.05,11.04668373]
[1735598216654,2.6212,191.09,191.04,2.6217]
[1735598216854,2.6212,191.09,191.04,8.42508373]
[1735598217159,3.66,191.1,191.04,8.42508373]
[1735598218562,35.36168544,191.1,191.06,2.6215]
[1735598221161,7.27014636,191.09,191.04,8.42508373]
[1735598222456,7.27014636,191.09,191.05,2.6215]
[1735598222662,7.27014636,191.09,191.04,8.42508373]
[1735598222859,41.16566917,191.11,191.04,8.42508373]
[1735598224364,32.74058544,191.11,191.04,8.42508373]
[1735598224563,2.621,191.1,191.06,2.6214]
[1735598225965,9.89114636,191.1,191.06,2.6214]
[1735598226770,2.621,191.1,191.06,2.6214]
[1735598227366,2.621,191.1,191.05,2.6216]
[1735598228266,2.6212,191.09,191.04,11.04688373]
[1735598228463,2.6212,191.09,191.04,8.42508373]
[1735598229366,2.6212,191.09,191.04,11.04688373]
[1735598233068,29.08058544,191.1,191.04,8.42508373]
[1735598233263,29.08058544,191.1,190.99,2.6225]
[1735598233264,2.6219,191.04,190.99,2.6225]
[1735598233468,3.64,191.04,190.98,8.42508373]
[1735598233970,2.622,191.03,190.98,11.04758373]
[1735598234165,3.64,191.04,190.92,7.17981792]
[1735598234370,9.23321578,191.03,190.92,7.17981792]
[1735598234565,0.80813205,191.02,190.94,8.42508373]
[1735598234766,2.6226,190.99,190.94,11.04828373]
[1735598234970,8.42508373,191.01,190.94,8.42508373]
[1735598235577,8.42508373,190.99,190.88,52.07466277]
[1735598235772,3.64,190.98,190.88,52.07466277]
[1735598235966,2.6228,190.97,190.91,11.04858373]
[1735598236167,3.64,190.98,190.91,2.6235]
[1735598236369,3.64,190.98,190.91,11.04858373]
[1735598237472,2.6229,190.96,190.91,11.04858373]
[1735598237672,3.64,190.98,190.91,8.42508373]
[1735598237873,1.4764,191.0,190.93,8.42508373]
[1735598238075,3.64,190.99,190.95,8.42508373]
[1735598238276,3.64,190.99,190.95,11.04808373]
[1735598238571,3.64,190.99,190.95,8.42508373]
[1735598238777,6.2625,190.99,190.95,8.42508373]
[1735598239678,6.2625,190.99,190.94,2.6231]
[1735598240777,2.6228,190.97,190.92,11.04838373]
[1735598241581,2.6228,190.97,190.92,8.42508373]
[1735598242278,2.6229,190.96,190.91,2.6236]
[1735598242475,2.6229,190.96,190.91,11.04868373]
[1735598242874,3.64,190.95,190.91,8.42508373]
[1735598243176,6.2631,190.95,190.91,8.42508373]
[1735598244683,2.6229,190.96,190.91,11.04858373]
[1735598244882,3.64,190.96,190.93,8.42508373]
[1735598245384,3.64,190.97,190.93,11.04828373]
[1735598245586,2.6227,190.98,190.93,8.42508373]
[1735598245780,3.64,190.97,190.93,8.42508373]
[1735598246483,3.64,190.97,190.94,2.6232]
[1735598247390,6.2628,190.97,190.93,8.42508373]
[1735598247683,3.64,190.97,190.93,8.42508373]
[1735598248088,6.2628,190.97,190.93,8.42508373]
[1735598248784,2.6231,190.95,190.9,2.6236]
[1735598248985,2.6231,190.95,190.9,11.04868373]
[1735598249186,3.64,190.97,190.9,8.42508373]
[1735598249787,2.623,190.95,190.92,8.42508373]
[1735598249987,3.64,190.97,190.92,8.42508373]
[1735598251389,6.2629,190.97,190.92,11.04848373]
[1735598251595,3.64,190.97,190.9,8.42508373]
[1735598252091,2.623,190.96,190.91,2.6236]
[1735598253396,8.42508373,190.99,190.92,8.42508373]
[1735598253602,3.64,190.98,190.94,2.6231]
[1735598256094,2.6223,191.01,190.96,2.6229]
[1735598256301,3.64,191.02,190.96,8.42508373]
[1735598256898,5.7732,191.03,190.98,2.6226]
[1735598257097,3.64,191.02,190.98,2.6226]
[1735598257700,12.06508373,191.02,190.96,8.42508373]
[1735598259104,2.6223,191.01,190.96,11.04798373]
[1735598263005,2.6224,191.0,190.96,11.04798373]
[1735598263207,2.6224,191.0,190.96,2.6229]
[1735598263407,2.6224,191.0,190.95,2.623]
[1735598264306,2.6224,191.0,190.96,2.6229]
[1735598264904,2.6224,191.0,190.94,8.42508373]
[1735598265101,2.6224,191.0,190.95,2.623]